bitfinex-derivatives/quotes_ETHF0:USTF0_20250213
["timestamp","ask_amount","ask_price","bid_price","bid_amount"]
[1739481855265,3.21342968,2666.8,2666.7,0.74988]
[1739481855466,3.96327968,2666.8,2666.7,0.74988]
[1739481855861,3.96327968,2666.8,2666.6,0.74988]
[1739481856061,3.21342968,2666.8,2666.4,45.26975547]
[1739481856268,3.21342968,2666.8,2666.7,0.74988]
[1739481857765,0.00562968,2666.8,2666.7,0.74988]
[1739481858671,3.2078,2667.2,2667.1,0.74976]
[1739481859171,0.7497,2667.4,2666.9,1.1616]
[1739481859375,1.7207,2667.5,2666.9,1.1616]
[1739481859561,2.47037,2667.5,2667.3,0.7497]
[1739481859764,1.7207,2667.5,2666.9,1.1616]
[1739481859965,0.74968,2667.4,2667.2,0.74971]
[1739481860772,1.7207,2667.5,2667.1,0.00562968]
[1739481861069,1.7207,2667.5,2667.1,0.75538968]
[1739481861269,0.74974,2667.3,2667.1,0.75538968]
[1739481861472,0.74973,2667.3,2667.1,0.75538968]
[1739481861973,0.74974,2667.2,2667.1,0.75538968]
[1739481862170,1.7207,2667.5,2667.1,0.00562968]
[1739481862375,0.74972,2667.3,2667.1,0.75536968]
[1739481862870,0.74972,2667.3,2667.1,0.00562968]
[1739481863168,0.74966,2667.5,2667.2,1.648]
[1739481863369,4.9156,2667.6,2667.2,1.648]
[1739481863560,4.9156,2667.6,2667.2,2.39773]
[1739481863768,4.9156,2667.6,2667.3,0.74969]
[1739481864071,0.74968,2667.4,2667.2,1.648]
[1739481864262,0.74968,2667.4,2667.3,0.74971]
[1739481864672,4.9156,2667.6,2667.2,2.39772]
[1739481864873,0.74971,2667.3,2667.2,2.39772]
[1739481865274,4.9156,2667.6,2667.2,2.39772]
[1739481865573,4.9156,2667.6,2667.2,1.648]
[1739481865775,0.74971,2667.3,2667.2,2.39772]
[1739481865975,4.9156,2667.6,2667.2,1.648]
[1739481866175,4.9156,2667.6,2667.3,0.7497]
[1739481866376,4.9156,2667.6,2667.1,3.21342968]
[1739481866577,0.74973,2667.3,2667.2,2.39773]
[1739481866775,4.9156,2667.6,2667.2,1.648]
[1739481866978,0.74971,2667.3,2667.2,2.39772]
[1739481868176,0.74974,2667.2,2667.1,4.86142968]
[1739481868380,0.74974,2667.2,2667.1,3.21342968]
[1739481868580,0.74974,2667.2,2667.1,0.00562968]
[1739481868981,1.29264,2667.2,2667.1,0.00562968]
[1739481869877,1.29264,2667.2,2667.1,0.75538968]
[1739481870181,1.29264,2667.2,2667.1,0.00562968]
[1739481872980,0.74991,2666.7,2666.6,0.7499]
[1739481873381,8.40438547,2667.0,2666.5,19.641]
[1739481873585,1.30651,2666.6,2666.5,19.641]
[1739481873882,1.30651,2666.6,2666.4,40.8]
[1739481873883,0.5566,2666.6,2666.4,41.54994]
[1739481874073,0.5566,2666.6,2666.1,8.40493547]
[1739481874074,0.5566,2666.6,2666.3,0.00562968]
[1739481874279,0.74996,2666.4,2666.3,0.00562968]
[1739481876091,1.29936,2666.4,2666.3,0.00562968]
[1739481879383,0.5494,2666.4,2666.3,0.75561968]
[1739481879584,0.74995,2666.5,2666.4,0.74996]
[1739481879785,3.7644,2666.6,2666.4,0.5551]
[1739481879984,4.51433,2666.6,2666.5,0.74993]
[1739481880188,3.2078,2666.6,2666.5,0.74993]
[1739481881684,3.95771,2666.6,2666.5,0.74993]
[1739481881986,3.2078,2666.6,2666.3,0.00562968]
[1739481882180,0.74995,2666.5,2666.4,0.74994]
[1739481883187,0.74996,2666.4,2666.3,0.56272968]
[1739481883388,0.74996,2666.4,2666.3,1.31271968]
[1739481884280,3.7977,2666.6,2666.3,0.56272968]
[1739481884481,3.2078,2666.6,2666.5,0.74993]
[1739481884689,3.95771,2666.6,2666.5,0.74993]
[1739481884987,3.2078,2666.6,2666.5,0.74993]
[1739481885589,3.95771,2666.6,2666.5,0.74993]
[1739481886189,3.2078,2666.6,2666.5,0.74993]
[1739481886691,3.95771,2666.6,2666.5,0.74993]
[1739481886994,3.2078,2666.6,2666.4,3.86775547]
[1739481887184,3.2078,2666.6,2666.3,0.56272968]
[1739481887491,0.74996,2666.4,2666.3,1.31271968]
[1739481889291,3.7612,2666.6,2666.3,0.56272968]
[1739481889589,0.74995,2666.5,2666.4,0.74994]
[1739481889792,3.7612,2666.6,2666.4,0.74994]
[1739481889995,0.74993,2666.5,2666.4,0.74994]
[1739481891492,0.5534,2666.6,2666.3,0.56272968]
[1739481891994,3.7612,2666.6,2666.3,0.56272968]
[1739481892195,3.32205547,2666.4,2665.0,3.32205547]
[1739481892493,0.75029,2665.3,2665.1,0.5979]
[1739481892690,3.2078,2665.4,2665.1,41.3979]
[1739481893091,0.7503,2665.2,2665.1,41.3979]
[1739481893292,0.7503,2665.2,2665.1,0.5979]
[1739481893599,0.75036,2665.0,2664.9,0.00562968]
[1739481893792,3.95816,2665.0,2664.9,0.00562968]
[1739481893998,3.95816,2665.0,2664.9,9.68e-06]
[1739481897196,3.2078,2665.0,2664.9,0.75038968]
[1739481897397,0.75031,2665.2,2664.9,0.75038968]
[1739481897593,3.2078,2665.3,2664.9,9.68e-06]
[1739481897790,3.95809,2665.3,2665.0,41.55036]
[1739481898097,0.75031,2665.2,2665.0,40.8]
[1739481898288,3.2078,2665.3,2665.0,40.8]
[1739481898487,0.7503,2665.2,2665.0,41.55034]
[1739481898896,3.2078,2665.3,2665.0,40.8]
[1739481899196,3.95809,2665.3,2665.1,0.75031]
[1739481899391,3.2078,2665.3,2665.0,40.8]
[1739481899600,3.95807,2665.3,2665.1,0.7503]
[1739481899999,3.95807,2665.3,2665.2,0.5778]
[1739481900294,0.00562968,2665.4,2665.2,0.5778]
[1739481900502,0.00562968,2665.4,2665.3,0.75027]
[1739481901195,0.75011,2665.9,2665.7,0.75015]
[1739481901497,0.75011,2665.9,2665.8,0.5778]
[1739481902299,0.75033,2665.1,2665.0,43.19834]
[1739481902597,0.75032,2665.2,2665.0,2.99464]
[1739481902799,3.2078,2665.4,2665.0,2.2443]
[1739481903092,0.75036,2665.0,2664.9,9.68e-06]
[1739481904403,0.75036,2665.0,2664.9,0.75038968]
[1739481904898,0.75036,2665.0,2664.9,9.68e-06]
[1739481905593,3.2078,2665.5,2664.9,4.85580968]
[1739481905897,3.91115547,2665.8,2664.9,4.85580968]
[1739481905898,6.52985547,2665.8,2665.5,0.75021]
[1739481906103,3.95794,2665.8,2665.7,0.75016]
[1739481906594,3.2078,2665.8,2665.7,0.75016]
[1739481906794,3.95793,2665.8,2665.7,0.75016]
[1739481906999,3.2078,2665.8,2665.7,0.75016]
[1739481907405,3.95793,2665.8,2665.7,0.75016]
[1739481908306,3.2078,2665.8,2665.7,0.75016]
[1739481909998,3.95793,2665.8,2665.7,0.75016]
[1739481911109,3.2078,2665.8,2665.4,0.5963]
[1739481911512,3.95795,2665.8,2665.7,0.75016]
[1739481912811,0.75018,2665.7,2665.6,0.75017]
[1739481913014,0.7502,2665.6,2665.5,0.75019]
[1739481913208,0.75018,2665.7,2665.6,0.75017]
[1739481913707,3.95795,2665.8,2665.7,0.75016]
[1739481913913,3.95793,2665.8,2665.7,0.75016]
[1739481915312,3.2078,2665.8,2665.7,0.75016]
[1739481915813,3.95793,2665.8,2665.7,0.75016]
[1739481916910,0.75019,2665.7,2665.6,0.75016]
[1739481917115,3.2078,2665.8,2665.5,0.5485]
[1739481917314,3.95794,2665.8,2665.7,0.75016]
[1739481918311,3.2078,2665.8,2665.7,0.75016]
[1739481920009,3.21342968,2666.1,2666.0,0.75007]
[1739481920213,0.00562968,2666.1,2666.0,0.75007]
[1739481920414,0.00562968,2666.1,2666.0,1.91927]
[1739481920719,0.00562968,2666.1,2666.0,42.71927]
[1739481921011,0.00562968,2666.1,2666.0,1.91927]
[1739481921814,0.00562968,2666.1,2666.0,2.22399459]
[1739481922315,0.00562968,2666.1,2666.0,1.91927]
[1739481932330,0.00444945,2666.1,2666.0,1.91927]
[1739481933035,1e-08,2666.1,2666.0,1.91927]
[1739481933235,1e-08,2666.1,2666.0,7.91927]
[1739481933930,0.5954,2666.9,2666.8,0.74985]
[1739481934436,3.2078,2667.1,2667.0,0.74979]
[1739481934641,3.2078,2667.1,2666.7,1.1493]
[1739481935338,0.74985,2666.8,2666.7,1.89916]
[1739481936535,5.08224,2667.1,2666.7,1.1493]
[1739481936736,0.74985,2666.8,2666.7,1.89916]
[1739481937437,0.74985,2666.8,2666.7,1.1493]
[1739481937643,0.74988,2666.7,2666.6,0.00562968]
[1739481940638,1.87477,2666.6,2665.9,44.0078]
[1739481940839,3.2078,2666.3,2665.9,44.0078]
[1739481941040,0.75005,2666.1,2666.0,0.75005]
[1739481941937,0.75007,2666.1,2666.0,0.75007]
[1739481942546,0.75008,2666.0,2665.9,44.75789]
[1739481942745,1.92428,2666.0,2665.9,44.75789]
[1739481942941,0.7501,2665.9,2665.8,0.00562968]
[1739481943837,1.314,2665.9,2665.8,0.00562968]
[1739481946446,1.314,2665.9,2665.8,0.75575968]
[1739481946647,1.314,2665.9,2665.8,0.00562968]
[1739481946843,1.314,2665.9,2665.8,0.75575968]
[1739481947142,1.314,2665.9,2665.8,0.00562968]
[1739481947840,1.314,2665.9,2665.8,0.75575968]
[1739481948438,0.5639,2665.9,2665.8,0.75575968]
[1739481950346,0.5931,2666.0,2665.9,0.7501]
[1739481950540,4.3274,2666.3,2666.2,0.75002]
[1739481950852,0.75003,2666.2,2666.1,0.75002]
[1739481951152,0.75006,2666.1,2666.0,0.75005]
[1739481951752,4.3274,2666.3,2665.8,0.60462968]
[1739481951950,0.75003,2666.2,2666.1,0.75002]
[1739481952457,4.3274,2666.3,2665.8,0.00562968]
[1739481952949,0.75006,2666.1,2666.0,0.75004]
[1739481953551,0.75003,2666.2,2666.1,0.75002]
[1739481953849,0.75003,2666.2,2665.8,1.88095968]
[1739481953850,0.75008,2666.1,2666.0,0.75006]
[1739481954250,0.75007,2666.1,2665.8,1.88094968]
[1739481954451,0.75007,2666.1,2666.0,0.75008]
[1739481954653,0.75004,2666.2,2666.1,0.75002]
[1739481955554,0.75007,2666.1,2666.0,0.75004]
[1739481956052,0.75008,2666.1,2666.0,0.75005]
[1739481957156,0.75004,2666.2,2666.1,0.75002]
[1739481959157,5.07741,2666.3,2666.2,0.75002]
[1739481960459,4.51151,2666.3,2666.2,0.75002]
[1739481961051,0.75005,2666.2,2666.1,0.75004]
[1739481962258,3.7615,2666.3,2666.0,0.5845]
[1739481962558,3.2078,2666.3,2666.2,0.75002]
[1739481964952,3.95779,2666.3,2666.2,0.75002]
[1739481966459,3.2078,2666.3,2666.2,0.75002]
[1739481967660,3.95779,2666.3,2666.2,0.75002]
[1739481969460,3.2078,2666.3,2666.2,0.75002]
[1739481969662,3.95779,2666.3,2666.2,0.75002]
[1739481974369,3.2078,2666.3,2666.2,0.75002]
[1739481974665,3.95779,2666.3,2666.2,0.75002]
[1739481975772,3.2078,2666.3,2666.2,0.75002]
[1739481976265,3.95779,2666.3,2666.2,0.75002]
[1739481980965,3.2078,2666.3,2666.0,0.5845]
[1739481981172,1.30615,2666.2,2666.1,0.75002]
[1739481984066,0.5561,2666.2,2665.9,0.561]
[1739481984273,0.7501,2665.9,2665.8,0.75572968]
[1739481986766,0.7501,2665.9,2665.8,0.00562968]
[1739481987385,1.21717721,2665.9,2665.8,0.00562968]
[1739481990578,0.7501,2665.9,2665.8,0.00562968]
[1739481994285,0.46637002,2665.9,2665.2,1.34487]
[1739481994482,0.75027,2665.3,2665.2,1.34487]
[1739481996683,1.1271,2665.4,2665.1,0.5926]
[1739481996875,0.7503,2665.2,2665.1,0.5926]
[1739481997283,0.7503,2665.2,2665.1,1.34293]
[1739481997483,3.9581,2665.2,2665.1,0.5926]
[1739481998083,3.9581,2665.2,2665.1,1.34293]
[1739481998283,3.9581,2665.2,2665.1,0.5926]
[1739482001080,0.75033,2665.1,2665.0,0.75597968]
[1739482001280,0.75033,2665.1,2665.0,0.00562968]
[1739482001481,1.31473,2665.1,2665.0,0.00562968]
[1739482002488,0.75033,2665.1,2665.0,0.00562968]
[1739482002688,0.75033,2665.1,2665.0,0.75598968]
[1739482004485,0.75033,2665.1,2665.0,0.00562968]
[1739482004789,4.07094905,2665.1,2665.0,0.00562968]
[1739482005785,3.32061905,2665.1,2664.6,0.5617]
[1739482006090,3.32061905,2665.1,2664.1,0.75059]
[1739482006091,0.75061,2664.2,2664.1,0.75059]
[1739482006278,0.75061,2664.2,2664.1,1.90549]
[1739482006484,0.75061,2664.2,2664.1,1.90551]
[1739482006693,0.80201478,2664.2,2664.1,1.90551]
[1739482007190,0.80201478,2664.2,2664.1,1.1549]
[1739482007391,3.37202383,2664.2,2663.6,40.8]
[1739482007589,0.75069,2663.8,2663.7,0.5991]
[1739482007782,0.80209478,2663.8,2663.7,0.5991]
[1739482010693,0.80209478,2663.8,2663.7,1.34982]
[1739482010891,0.80209478,2663.8,2663.7,0.5991]
[1739482013890,0.80209478,2663.8,2663.7,1.34982]
[1739482014192,0.80209478,2663.8,2663.7,0.5991]
[1739482016894,0.80209478,2663.8,2663.7,1.34982]
[1739482017091,0.05140478,2663.8,2663.7,1.34982]
[1739482017397,0.05140478,2663.8,2663.7,4.67043905]
[1739482017799,0.80209478,2663.8,2663.7,4.67043905]
[1739482018291,0.05140478,2663.8,2663.7,4.67043905]
[1739482018699,0.80209478,2663.8,2663.7,4.67043905]
[1739482019589,0.05140478,2663.8,2663.7,4.67043905]
[1739482022086,0.05140478,2663.8,2663.7,1.34982]
[1739482024700,0.05140478,2663.8,2663.7,0.5991]
[1739482024896,0.80209478,2663.8,2663.7,0.5991]
[1739482025894,0.05140478,2663.8,2663.5,0.5558]
[1739482026094,0.75075,2663.6,2663.5,1.30657]
[1739482026302,0.75075,2663.6,2663.5,0.5558]
[1739482026498,0.75075,2663.6,2663.5,1.30658]
[1739482026899,0.80215478,2663.6,2663.5,1.30658]
[1739482029197,0.80215478,2663.6,2663.5,0.5558]
[1739482030191,0.05140478,2663.6,2663.0,0.5716]
[1739482030400,0.75086,2663.3,2663.2,0.75084]
[1739482030798,0.80226478,2663.3,2663.2,0.75084]
[1739482031700,0.75086,2663.2,2663.1,1.89897]
[1739482031902,0.80226478,2663.2,2663.1,1.89897]
[1739482032803,0.05140478,2663.2,2663.1,1.89897]
[1739482033901,0.80226478,2663.2,2663.1,1.89897]
[1739482034098,0.80226478,2663.2,2663.1,1.89899]
[1739482034405,0.80226478,2663.2,2663.1,0.5877]
[1739482034602,0.80226478,2663.2,2663.0,0.75091]
[1739482034603,0.61670478,2663.2,2663.0,0.75091]
[1739482034902,0.80229478,2663.1,2663.0,0.75091]
[1739482035098,0.05140478,2663.1,2663.0,0.75091]
[1739482037604,0.80229478,2663.1,2663.0,0.75091]
[1739482037811,0.05140478,2663.1,2663.0,0.75091]
[1739482044501,0.05140478,2663.1,2663.0,1.31621]
[1739482045300,1.1711,2663.6,2663.5,0.75078]
[1739482045601,0.75068,2664.0,2663.9,0.75065]
[1739482045801,1.88828,2664.0,2663.9,0.75065]
[1739482046301,0.75069,2663.9,2663.8,0.75068]
[1739482046510,0.75069,2663.8,2663.7,1.29432]
[1739482047908,0.75069,2663.8,2663.7,0.5436]
[1739482048409,0.75072,2663.7,2663.6,0.75074]
[1739482050803,0.75071,2663.8,2663.7,0.75068]
[1739482053510,0.75072,2663.7,2663.6,1.31233]
[1739482056619,0.7507,2663.9,2663.8,0.75067]
[1739482058118,0.75069,2663.8,2663.7,0.557]
[1739482058417,0.75069,2663.8,2663.7,1.30772]
[1739482059218,1.1376,2664.0,2663.7,1.30772]
[1739482059518,1.88824,2664.0,2663.9,0.75067]
[1739482060419,1.1376,2664.0,2663.9,0.75067]
[1739482060814,1.88824,2664.0,2663.9,0.75067]
[1739482061322,3.95842,2664.1,2664.0,0.75064]
[1739482062222,3.2078,2664.1,2664.0,0.75064]
[1739482062420,0.00562968,2664.2,2664.1,0.75061]
[1739482063323,0.75620968,2664.2,2664.1,0.75061]
[1739482063519,0.00562968,2664.2,2664.1,0.75061]
[1739482064827,0.75620968,2664.2,2664.1,0.75061]
[1739482066426,0.00562968,2664.2,2664.1,0.75061]
[1739482067824,0.75620968,2664.2,2664.1,0.75061]
[1739482069326,0.00562968,2664.2,2664.1,0.75061]
[1739482069528,0.75620968,2664.2,2664.1,0.75061]
[1739482071127,0.00562968,2664.2,2664.0,0.5458]
[1739482071333,0.75061,2664.1,2664.0,1.29641]
[1739482071630,0.00562968,2664.2,2664.0,0.5458]
[1739482071831,0.00562968,2664.2,2664.1,0.75061]
[1739482072729,0.75620968,2664.2,2664.1,0.75061]
[1739482081429,0.00562968,2664.2,2664.1,0.75061]
[1739482081835,0.00562968,2664.2,2664.1,41.55061]
[1739482082034,0.75620968,2664.2,2664.1,41.55061]
[1739482082634,0.75620968,2664.2,2664.1,0.75061]
[1739482083355,0.75064,2664.0,2663.9,0.75065]
[1739482083642,0.75067,2663.9,2663.8,6.16436]
[1739482084140,0.5958,2664.1,2663.8,6.9024445]
[1739482084343,1.34641,2664.1,2664.0,0.75064]
[1739482084536,0.00562968,2664.2,2663.8,8.7791645]
[1739482084738,0.00562968,2664.2,2664.1,0.75061]
[1739482086740,0.75620968,2664.2,2664.1,0.75061]
[1739482087340,0.00562968,2664.2,2664.1,0.75061]
[1739482087747,0.75620968,2664.2,2664.1,0.75061]
[1739482088746,0.75065,2664.1,2664.0,0.75062]
[1739482088935,0.75067,2664.0,2663.9,0.75065]
[1739482089139,1.34547,2664.0,2663.9,0.75065]
[1739482089846,0.75067,2663.9,2663.8,1.31057]
[1739482090045,0.75069,2663.8,2663.7,1.30769]
[1739482091338,0.75069,2663.8,2663.7,1.30772]
[1739482099046,0.75069,2663.8,2663.7,0.557]
[1739482099250,0.75069,2663.8,2663.7,1.30772]
[1739482099552,1.2063,2663.9,2663.6,0.5594]
[1739482099748,0.75072,2663.7,2663.6,1.31013]
[1739482100152,1.2063,2663.9,2663.6,0.5594]
[1739482100351,1.2063,2663.9,2663.6,1.31012]
[1739482100352,0.75072,2663.7,2663.6,1.31012]
[1739482100947,0.75072,2663.7,2663.6,0.5594]
[1739482101255,0.75072,2663.7,2663.6,1.31015]
[1739482101457,1.2063,2663.9,2663.6,0.5594]
[1739482101757,0.75072,2663.8,2663.7,0.75069]
[1739482103255,1.35369,2663.9,2663.8,0.75069]
[1739482104349,0.603,2663.9,2663.8,0.75069]
[1739482104553,0.75062,2664.1,2664.0,0.75061]
[1739482104947,1.11342968,2664.2,2663.7,1.87678]
[1739482105147,0.75068,2664.0,2663.9,0.75064]
[1739482108258,0.75063,2664.1,2664.0,0.75061]
[1739482109459,0.75063,2664.1,2664.0,1.30581]
[1739482111175,1.11342968,2664.2,2664.0,0.5552]
[1739482111458,0.00562968,2664.2,2664.1,0.75061]
[1739482111656,0.75620968,2664.2,2664.1,0.75061]
[1739482111858,0.75620968,2664.2,2664.0,1.30582]
[1739482111859,0.75061,2664.1,2664.0,1.30582]
[1739482114260,0.75064,2664.0,2663.9,1.35156]
[1739482114566,0.75064,2664.0,2663.9,0.75066]
[1739482114759,0.75067,2663.9,2663.8,1.31587]
[1739482115459,0.75067,2663.9,2663.8,0.5652]
[1739482116166,1.29987,2663.9,2663.8,1.31589]
[1739482125770,1.29987,2663.9,2663.8,0.5652]
[1739482125973,1.29987,2663.9,2663.8,1.31589]
[1739482128068,1.29987,2663.9,2663.8,0.5652]
[1739482129273,1.29987,2663.9,2663.8,1.31589]
[1739482129672,1.29987,2663.9,2663.8,0.5652]
[1739482130474,0.5492,2663.9,2663.7,0.75071]
[1739482130770,0.75069,2663.8,2663.7,0.75071]
[1739482133267,1.29989,2663.9,2663.8,0.75069]
[1739482134573,0.5492,2663.9,2663.6,1.1568]
[1739482134773,0.75072,2663.8,2663.7,0.75069]
[1739482138478,0.5492,2663.9,2663.6,1.1568]
[1739482138676,0.75072,2663.7,2663.6,1.90752]
[1739482140178,0.75072,2663.7,2663.6,1.1568]
[1739482140380,0.75072,2663.7,2663.6,1.90755]
[1739482140875,0.75089,2663.1,2663.0,3.95871]
[1739482141185,0.75089,2663.2,2663.1,0.75086]
[1739482141775,1.34169,2663.2,2663.1,0.75086]
[1739482141971,0.5908,2663.2,2663.1,0.75086]
[1739482144974,1.34166,2663.2,2663.1,0.75086]
[1739482145173,0.5908,2663.2,2663.1,0.75086]
[1739482145979,3.2078,2663.4,2663.0,6.89364626]
[1739482146178,3.95861,2663.4,2663.3,0.75084]
[1739482146383,3.2078,2663.4,2663.3,0.75084]
[1739482146581,3.2078,2663.4,2663.3,1.30504]
[1739482146777,0.75073,2663.8,2663.7,0.7507]
[1739482146977,0.75075,2663.7,2663.6,2.23905626]
[1739482147482,0.75075,2663.7,2663.6,0.75071]
[1739482147677,0.75078,2663.6,2663.5,0.75076]
[1739482148181,3.36510626,2663.8,2663.3,3.762]
[1739482148381,2.43071,2663.5,2663.4,0.7508]
[1739482151586,1.6799,2663.5,2663.3,0.5542]
[1739482151773,0.75089,2663.2,2663.1,0.75088]
[1739482152379,0.75086,2663.3,2663.2,0.75085]
[1739482154178,0.75086,2663.3,2663.2,0.75084]
[1739482154381,1.48834626,2663.4,2663.0,4.69614626]
[1739482154582,0.75089,2663.2,2663.1,0.75087]
[1739482154980,1.48834626,2663.4,2663.0,4.69614626]
[1739482155283,0.75089,2663.2,2663.1,0.75087]
[1739482155587,1.48834626,2663.4,2663.0,4.69614626]
[1739482155789,1.92049,2663.1,2663.0,5.44703626]
[1739482155981,1.1696,2663.1,2662.9,0.5453]
[1739482156189,0.75092,2663.0,2662.9,1.29622]
[1739482157090,0.75092,2663.0,2662.9,1.29625]
[1739482158287,0.75092,2663.0,2662.9,0.5453]
[1739482158488,0.75095,2662.9,2662.8,20.41198]
[1739482158784,1.48834626,2663.0,2662.9,0.75095]
[1739482158785,2.23928626,2663.0,2662.9,0.75095]
[1739482158984,0.75094,2663.0,2662.9,0.75095]
[1739482159292,1.7686,2663.1,2662.8,21.14934626]
[1739482159494,2.51951,2663.1,2663.0,0.75092]
[1739482159690,2.51949,2663.1,2663.0,0.75092]
[1739482160093,2.51949,2663.1,2663.0,2.23926626]
[1739482160392,0.75089,2663.1,2663.0,2.23926626]
[1739482162386,0.75095,2662.9,2662.8,20.41195]
[1739482162594,0.75095,2662.9,2662.8,0.75095]
[1739482163899,0.75098,2662.9,2662.8,0.75096]
[1739482164895,0.75095,2663.0,2662.9,0.75093]
[1739482165199,3.54321,2663.3,2663.2,0.75084]
[1739482165200,0.75086,2663.3,2663.2,0.75084]
[1739482165399,3.2078,2663.4,2663.1,1.48834626]
[1739482165602,0.75092,2663.1,2663.0,0.75091]
[1739482166102,0.75089,2663.2,2663.1,0.75086]
[1739482167993,0.75095,2663.0,2662.9,0.75091]
[1739482173206,0.75092,2663.1,2663.0,0.75087]
[1739482174505,3.2078,2663.4,2662.7,5.66351]
[1739482174810,0.75091,2663.2,2663.1,0.75086]
[1739482176410,1.29951,2663.2,2662.7,5.66351]
[1739482176610,0.75095,2663.0,2662.9,0.7509]
[1739482176811,0.75092,2663.1,2663.0,0.75089]
[1739482180109,0.5589,2663.3,2663.1,0.75089]
[1739482180316,1.30974,2663.3,2663.2,1.34956]
[1739482190225,1.30974,2663.3,2663.2,0.5987]
[1739482190823,1.30974,2663.3,2663.2,1.34956]
[1739482191633,1.30974,2663.3,2663.2,0.5987]
[1739482192427,1.30974,2663.3,2663.2,1.34956]
[1739482195216,1.30974,2663.3,2663.2,0.5987]
[1739482195422,0.75089,2663.1,2663.0,3.95872]
[1739482195728,0.75089,2663.1,2663.0,4.54052]
[1739482196126,0.75089,2663.1,2663.0,3.7896]
[1739482196326,0.75089,2663.1,2663.0,4.54052]
[1739482197227,0.75089,2663.1,2663.0,3.7896]
[1739482197421,0.75089,2663.1,2663.0,4.54052]
[1739482199530,0.75089,2663.1,2663.0,3.7896]
[1739482200430,1.87741,2662.9,2662.6,0.751]
[1739482200621,1.30638,2662.8,2662.7,0.5885]
[1739482201223,1.1389,2663.0,2662.7,2.07775283]
[1739482201427,0.75098,2662.9,2662.8,0.75095]
[1739482203031,0.75093,2663.0,2662.9,0.75092]
[1739482203334,0.75093,2663.0,2662.9,2.24017283]
[1739482203834,4.8671,2663.4,2662.9,1.48925283]
[1739482204036,0.75089,2663.1,2663.0,1.3446]
[1739482204430,0.75089,2663.1,2663.0,0.5937]
[1739482204831,0.75089,2663.1,2663.0,1.34462]
[1739482205838,0.75097,2662.9,2662.8,0.75094]
[1739482206130,0.75097,2662.9,2662.8,1.34464]
[1739482206327,0.579,2663.0,2662.8,0.5937]
[1739482206533,0.75092,2663.1,2663.0,0.75089]
[1739482207737,0.75095,2663.0,2662.9,0.75093]
[1739482207932,1.32865,2663.0,2662.9,0.75093]
[1739482209035,0.5777,2663.0,2662.8,0.5937]
[1739482209337,0.75095,2662.9,2662.8,1.34466]
[1739482209537,1.91905,2662.9,2662.8,1.34466]
[1739482211539,1.91905,2662.9,2662.8,0.5937]
[1739482212337,1.91905,2662.9,2662.8,1.34468]
[1739482214738,0.751,2662.8,2662.7,0.751]
[1739482215041,0.751,2662.7,2662.6,4.50902]
[1739482218241,0.751,2662.7,2662.6,3.758]
[1739482218431,0.751,2662.7,2662.6,3.2078]
[1739482221339,4.53473283,2662.9,2662.5,0.75104]
[1739482221546,1.89053,2662.6,2662.5,0.75104]
[1739482222337,1.89053,2662.6,2662.3,1.48925283]
[1739482222338,1.1395,2662.6,2662.3,1.48925283]
[1739482222642,0.75109,2662.4,2662.3,2.24034283]
[1739482223144,0.5612,2662.5,2662.4,0.75109]
[1739482223340,3.2078,2662.8,2662.3,1.48925283]
[1739482223640,0.00562968,2663.0,2662.9,0.75095]
[1739482223641,0.75654968,2663.0,2662.9,0.75095]
[1739482223947,0.75654968,2663.0,2662.9,43.04020283]
[1739482224139,0.75654968,2663.0,2662.9,2.24020283]
[1739482225837,0.00562968,2663.0,2662.9,2.24020283]
[1739482228644,0.75654968,2663.0,2662.9,2.24020283]
[1739482228835,0.00562968,2663.0,2662.9,2.24020283]
[1739482229739,0.00562968,2663.0,2662.9,4.07819618]
[1739482231050,0.5554,2663.4,2662.9,3.32724618]
[1739482231240,0.5554,2663.4,2663.3,0.75084]
[1739482234349,0.00562968,2663.6,2663.5,0.75078]
[1739482234550,0.00562968,2663.6,2663.5,4.07802618]
[1739482234951,0.00562968,2663.6,2663.5,0.75078]
[1739482235445,0.00562968,2663.6,2663.5,4.07802618]
[1739482237448,3.2078,2664.5,2663.6,1.87688]
[1739482237753,3.2078,2664.5,2664.1,0.7506]
[1739482237754,0.75061,2664.2,2664.1,0.7506]
[1739482240053,1.7431,2664.3,2664.0,0.5873]
[1739482240354,1.1809,2664.3,2664.2,0.75058]
[1739482243046,0.5816,2664.3,2664.2,0.75058]
[1739482243448,0.00562968,2664.4,2664.3,0.75055]
[1739482251952,0.00562968,2664.4,2664.3,0.75055]
[1739482255658,1.1398,2664.7,2664.6,0.75047]
[1739482257767,1.89024,2664.7,2664.6,0.75047]
[1739482257960,0.75049,2664.6,2664.5,0.75047]
[1739482258358,1.1398,2664.7,2664.4,0.5816]
[1739482258562,1.89027,2664.7,2664.6,0.75047]
[1739482258763,1.1398,2664.7,2664.4,0.5816]
[1739482259067,0.75049,2664.6,2664.5,0.75047]
[1739482260358,0.75049,2664.6,2664.3,1.64]
[1739482260359,1.89026,2664.7,2664.6,0.75047]
[1739482262165,1.1398,2664.7,2664.6,0.75047]
[1739482263071,0.5495,2664.7,2664.6,0.75047]
[1739482263265,0.5877,2664.8,2664.5,3.7555]
[1739482263465,0.00562968,2664.9,2664.8,0.75041]
[1739482264069,0.00562968,2664.9,2664.8,41.55041]
[1739482264372,0.5598,2665.1,2665.0,0.75036]
[1739482264573,1.88562,2665.5,2665.4,0.75024]
[1739482264774,1.32076,2665.4,2665.3,0.75026]
[1739482264972,0.5705,2665.4,2665.3,0.75026]
[1739482265179,1.32074,2665.4,2665.3,0.75026]
[1739482265582,0.75028,2665.3,2665.2,0.75029]
[1739482265773,0.5705,2665.4,2665.1,0.5632]
[1739482265974,0.5705,2665.4,2664.8,3.2078]
[1739482266182,0.75034,2665.1,2665.0,0.75034]